[Event "*** Titled Tuesday 3|2 Blitz (Early)"]
[Site "Chess.com"]
[Date "2016.12.06"]
[Round "3"]
[White "norwaytoadog"]
[Black "Enzy63"]
[Result "0-1"]
[WhiteElo "1929"]
[BlackElo "2017"]
[TimeControl "180+2"]
[EndTime "11:36:12 PST"]
[Termination "Enzy63 won on time"]

1. e4 {[%clk 0:03:01.9]} 1... c5 {[%clk 0:02:59.8]} 2. Nf3 {[%clk 0:02:55.6]}
2... d6 {[%clk 0:03:00.7]} 3. Bb5+ {[%clk 0:02:55.9]} 3... Nd7 {[%clk
0:03:00.1]} 4. O-O {[%clk 0:02:55.1]} 4... a6 {[%clk 0:02:58.7]} 5. Bxd7+ {[%clk
0:02:54]} 5... Bxd7 {[%clk 0:03:00.6]} 6. d3 {[%clk 0:02:54.5]} 6... e5 {[%clk
0:02:51.3]} 7. a4 {[%clk 0:02:50.8]} 7... h6 {[%clk 0:02:50.1]} 8. Nc3 {[%clk
0:02:48.5]} 8... Nf6 {[%clk 0:02:50.4]} 9. a5 {[%clk 0:02:47.4]} 9... Be7 {[%clk
0:02:50]} 10. Bd2 {[%clk 0:02:48.2]} 10... O-O {[%clk 0:02:48.9]} 11. Ne2 {[%clk
0:02:48.4]} 11... Re8 {[%clk 0:02:46.6]} 12. Qb1 {[%clk 0:02:48.2]} 12... Rc8
{[%clk 0:02:42.4]} 13. b4 {[%clk 0:02:47.6]} 13... c4 {[%clk 0:02:41.6]} 14. Ng3
{[%clk 0:02:42.3]} 14... Bf8 {[%clk 0:02:35.4]} 15. Re1 {[%clk 0:02:37.5]} 15...
g6 {[%clk 0:02:24.2]} 16. Be3 {[%clk 0:02:33.9]} 16... Bg7 {[%clk 0:02:18.3]}
17. Bb6 {[%clk 0:02:13.8]} 17... Qe7 {[%clk 0:02:17.1]} 18. d4 {[%clk
0:02:03.3]} 18... Bg4 {[%clk 0:02:09.9]} 19. dxe5 {[%clk 0:01:49.9]} 19... dxe5
{[%clk 0:02:08.6]} 20. Nd2 {[%clk 0:01:50.2]} 20... Nd7 {[%clk 0:02:03.4]} 21.
Be3 {[%clk 0:01:43.6]} 21... Be6 {[%clk 0:01:57.2]} 22. c3 {[%clk 0:01:42.3]}
22... Rf8 {[%clk 0:01:53.1]} 23. Qc1 {[%clk 0:01:41.2]} 23... f5 {[%clk
0:01:39.1]} 24. exf5 {[%clk 0:01:38.6]} 24... gxf5 {[%clk 0:01:41]} 25. f4
{[%clk 0:01:36]} 25... Qh4 {[%clk 0:01:26.6]} 26. Nf3 {[%clk 0:01:34.4]} 26...
Qg4 {[%clk 0:01:26.4]} 27. Bf2 {[%clk 0:01:14]} 27... Bd5 {[%clk 0:01:08.4]} 28.
h3 {[%clk 0:00:50]} 28... Qxf4 {[%clk 0:01:02.8]} 29. Nh5 {[%clk 0:00:36.5]}
29... Qxc1 {[%clk 0:00:58.2]} 30. Raxc1 {[%clk 0:00:36.9]} 30... Bh8 {[%clk
0:00:55.6]} 31. Nh4 {[%clk 0:00:32.6]} 31... Bf7 {[%clk 0:00:38]} 32. Nxf5
{[%clk 0:00:27.5]} 32... Bxh5 {[%clk 0:00:38.2]} 33. g4 {[%clk 0:00:21.3]} 33...
Rxf5 {[%clk 0:00:33]} 34. gxf5 {[%clk 0:00:21.4]} 34... Bf3 {[%clk 0:00:34.2]}
35. Bh4 {[%clk 0:00:18.9]} 35... Kf7 {[%clk 0:00:33.8]} 36. Kf2 {[%clk
0:00:19.8]} 36... Bc6 {[%clk 0:00:34.1]} 37. Rcd1 {[%clk 0:00:20.1]} 37... Bf6
{[%clk 0:00:32.4]} 38. Bg3 {[%clk 0:00:18.3]} 38... h5 {[%clk 0:00:30]} 39. Rd6
{[%clk 0:00:18.7]} 39... h4 {[%clk 0:00:27.6]} 40. Rxf6+ {[%clk 0:00:17.5]}
40... Nxf6 {[%clk 0:00:24.7]} 41. Bxe5 {[%clk 0:00:15.1]} 41... Rg8 {[%clk
0:00:24.5]} 42. Rd1 {[%clk 0:00:13.5]} 42... Rg2+ {[%clk 0:00:21.5]} 43. Ke3
{[%clk 0:00:14]} 43... Nd7 {[%clk 0:00:14.6]} 44. Bd6 {[%clk 0:00:11.7]} 44...
Rc2 {[%clk 0:00:13.9]} 45. Kd4 {[%clk 0:00:12]} 45... Rf2 {[%clk 0:00:13.3]} 46.
Re1 {[%clk 0:00:11.7]} 46... Rxf5 {[%clk 0:00:11.4]} 47. Re7+ {[%clk 0:00:12.3]}
47... Kf6 {[%clk 0:00:12.5]} 48. Rh7 {[%clk 0:00:12.1]} 48... Rd5+ {[%clk
0:00:13]} 49. Ke3 {[%clk 0:00:12.2]} 49... Rxd6 {[%clk 0:00:14.2]} 50. Rh6+
{[%clk 0:00:10.9]} 50... Ke5 {[%clk 0:00:14.7]} 51. Rh5+ {[%clk 0:00:11.8]}
51... Ke6 {[%clk 0:00:15.5]} 52. Rh6+ {[%clk 0:00:12.4]} 52... Nf6 {[%clk
0:00:16.5]} 53. Rxh4 {[%clk 0:00:12.6]} 53... Rd3+ {[%clk 0:00:17.8]} 54. Ke2
{[%clk 0:00:12.6]} 54... Rxc3 {[%clk 0:00:18.4]} 55. Rh6 {[%clk 0:00:11.4]}
55... Rc2+ {[%clk 0:00:17.4]} 56. Ke3 {[%clk 0:00:10.8]} 56... Rh2 {[%clk
0:00:16]} 57. Kd4 {[%clk 0:00:11.1]} 57... Rc2 {[%clk 0:00:16.1]} 58. h4 {[%clk
0:00:10.7]} 58... c3 {[%clk 0:00:15.9]} 59. h5 {[%clk 0:00:09.1]} 59... Rc1
{[%clk 0:00:15.9]} 60. Rg6 {[%clk 0:00:06.8]} 60... c2 {[%clk 0:00:16.5]} 61. h6
{[%clk 0:00:06.4]} 61... Rd1+ {[%clk 0:00:17.4]} 62. Ke3 {[%clk 0:00:04.2]}
62... c1=Q+ {[%clk 0:00:18.2]} 0-1

[Event "*** Titled Tuesday 3|2 Blitz (Early)"]
[Site "Chess.com"]
[Date "2016.12.06"]
[Round "3"]
[White "Sethu0025"]
[Black "Iball95"]
[Result "0-1"]
[WhiteElo "2606"]
[BlackElo "2492"]
[TimeControl "180+2"]
[EndTime "11:36:21 PST"]
[Termination "Iball95 won by resignation"]

1. e4 {[%clk 0:03:02]} 1... c5 {[%clk 0:03:00.1]} 2. Nf3 {[%clk 0:03:02.9]} 2...
Nc6 {[%clk 0:03:01.4]} 3. d4 {[%clk 0:03:03.4]} 3... cxd4 {[%clk 0:03:03.3]} 4.
Nxd4 {[%clk 0:03:05]} 4... g6 {[%clk 0:03:04.5]} 5. c4 {[%clk 0:03:05.4]} 5...
Nf6 {[%clk 0:03:04.9]} 6. Nc3 {[%clk 0:03:06]} 6... d6 {[%clk 0:03:06.3]} 7. Be2
{[%clk 0:03:04.8]} 7... Nxd4 {[%clk 0:03:07.1]} 8. Qxd4 {[%clk 0:03:05.3]} 8...
Bg7 {[%clk 0:03:08.7]} 9. O-O {[%clk 0:03:04.8]} 9... O-O {[%clk 0:03:10]} 10.
Bg5 {[%clk 0:03:02.6]} 10... Be6 {[%clk 0:03:11]} 11. Qd2 {[%clk 0:03:00.2]}
11... Qa5 {[%clk 0:03:12.3]} 12. Rac1 {[%clk 0:02:55.5]} 12... Rfc8 {[%clk
0:03:12.1]} 13. b3 {[%clk 0:02:54.6]} 13... a6 {[%clk 0:03:12.5]} 14. Bd3 {[%clk
0:02:26.7]} 14... b5 {[%clk 0:02:57.1]} 15. Nd5 {[%clk 0:02:25.6]} 15... Qxd2
{[%clk 0:02:56.4]} 16. Bxd2 {[%clk 0:02:26.6]} 16... Bxd5 {[%clk 0:02:31.6]} 17.
cxd5 {[%clk 0:02:27.1]} 17... Nd7 {[%clk 0:02:30.5]} 18. Rfd1 {[%clk 0:02:26.5]}
18... Bb2 {[%clk 0:02:25.1]} 19. Rb1 {[%clk 0:02:26]} 19... Bd4 {[%clk
0:02:22.8]} 20. Ba5 {[%clk 0:02:14.4]} 20... Bb6 {[%clk 0:02:00.7]} 21. Be1
{[%clk 0:02:13.8]} 21... Nc5 {[%clk 0:01:36.1]} 22. Bc2 {[%clk 0:02:14.5]} 22...
Nd7 {[%clk 0:01:30.9]} 23. Rbc1 {[%clk 0:02:12.4]} 23... Rc7 {[%clk 0:01:29.6]}
24. Bb1 {[%clk 0:02:11.1]} 24... Rac8 {[%clk 0:01:29.7]} 25. Rxc7 {[%clk
0:02:11.9]} 25... Rxc7 {[%clk 0:01:31.6]} 26. Kf1 {[%clk 0:02:13]} 26... f6
{[%clk 0:01:25.6]} 27. Ke2 {[%clk 0:02:13.9]} 27... Kf7 {[%clk 0:01:24.7]} 28.
Bd2 {[%clk 0:02:15]} 28... g5 {[%clk 0:01:05.3]} 29. h3 {[%clk 0:02:10.9]} 29...
h5 {[%clk 0:01:05]} 30. g3 {[%clk 0:02:11]} 30... Rc8 {[%clk 0:00:58.3]} 31. f3
{[%clk 0:01:57.9]} 31... Ba7 {[%clk 0:00:35.8]} 32. Rc1 {[%clk 0:01:48.9]} 32...
Rxc1 {[%clk 0:00:35.7]} 33. Bxc1 {[%clk 0:01:49.7]} 33... Bd4 {[%clk 0:00:34.9]}
34. f4 {[%clk 0:01:49.8]} 34... gxf4 {[%clk 0:00:33.5]} 35. gxf4 {[%clk
0:01:50.7]} 35... f5 {[%clk 0:00:29]} 36. e5 {[%clk 0:01:49.1]} 36... dxe5
{[%clk 0:00:27.9]} 37. Bxf5 {[%clk 0:01:50.1]} 37... Nf6 {[%clk 0:00:24.5]} 38.
Be6+ {[%clk 0:01:50.2]} 38... Kg7 {[%clk 0:00:24.6]} 39. Kd3 {[%clk 0:01:49.2]}
39... Ba1 {[%clk 0:00:21.5]} 40. Be3 {[%clk 0:01:49.5]} 40... e4+ {[%clk
0:00:18.8]} 41. Ke2 {[%clk 0:01:43.7]} 41... Ne8 {[%clk 0:00:19.7]} 42. Bb6
{[%clk 0:01:40.2]} 42... Nd6 {[%clk 0:00:19.1]} 43. Ke3 {[%clk 0:01:36]} 43...
Kf6 {[%clk 0:00:19.4]} 44. Bd7 {[%clk 0:01:33.9]} 44... Bc3 {[%clk 0:00:17.8]}
45. Bc6 {[%clk 0:01:24.2]} 45... Bb2 {[%clk 0:00:15.6]} 46. Ke2 {[%clk
0:01:19.9]} 46... Bc1 {[%clk 0:00:15.4]} 47. Be3 {[%clk 0:01:15.2]} 47... Bxe3
{[%clk 0:00:16.2]} 48. Kxe3 {[%clk 0:01:16.4]} 48... h4 {[%clk 0:00:17]} 49. Bd7
{[%clk 0:01:17]} 49... Kg6 {[%clk 0:00:14.6]} 50. Kd4 {[%clk 0:01:16.8]} 50...
Kf6 {[%clk 0:00:16]} 51. Bg4 {[%clk 0:01:17.5]} 51... Kg6 {[%clk 0:00:14.1]} 52.
Ke5 {[%clk 0:01:17.7]} 52... Kf7 {[%clk 0:00:15]} 53. Be2 {[%clk 0:01:17.5]}
53... a5 {[%clk 0:00:15.7]} 54. Bh5+ {[%clk 0:01:11]} 54... Kf8 {[%clk 0:00:16]}
55. Bg6 {[%clk 0:01:11.4]} 55... e3 {[%clk 0:00:16.8]} 56. Bd3 {[%clk
0:01:12.5]} 56... a4 {[%clk 0:00:18.1]} 57. Be2 {[%clk 0:01:06.1]} 57... axb3
{[%clk 0:00:18.6]} 58. axb3 {[%clk 0:01:06.5]} 58... Kf7 {[%clk 0:00:19.5]} 59.
Bh5+ {[%clk 0:01:06.3]} 59... Kg7 {[%clk 0:00:19.1]} 60. Be2 {[%clk 0:01:06.6]}
60... Kg6 {[%clk 0:00:19]} 61. Bd3+ {[%clk 0:01:07.4]} 61... Kf7 {[%clk
0:00:19.6]} 62. Be2 {[%clk 0:01:07.8]} 62... Kg6 {[%clk 0:00:20]} 63. Bg4 {[%clk
0:01:07.8]} 63... Kf7 {[%clk 0:00:19.7]} 64. Bh5+ {[%clk 0:01:08.3]} 64... Kf8
{[%clk 0:00:20.2]} 65. Ke6 {[%clk 0:01:08]} 65... Ne4 {[%clk 0:00:19.4]} 66. f5
{[%clk 0:01:05.6]} 66... Ng3 {[%clk 0:00:20]} 67. f6 {[%clk 0:01:00.2]} 67...
Nxh5 {[%clk 0:00:18.3]} 68. fxe7+ {[%clk 0:01:00.2]} 68... Ke8 {[%clk
0:00:19.7]} 69. d6 {[%clk 0:00:59.5]} 69... Ng7+ {[%clk 0:00:20.7]} 70. Kf6
{[%clk 0:00:57.9]} 70... e2 {[%clk 0:00:20.1]} 71. Kxg7 {[%clk 0:00:41.6]} 71...
e1=Q {[%clk 0:00:21]} 0-1

[Event "*** Titled Tuesday 3|2 Blitz (Early)"]
[Site "Chess.com"]
[Date "2016.12.06"]
[Round "3"]
[White "Wolverine_master"]
[Black "renanreis"]
[Result "0-1"]
[WhiteElo "2018"]
[BlackElo "1989"]
[TimeControl "180+2"]
[EndTime "11:36:21 PST"]
[Termination "renanreis won by resignation"]

1. e4 {[%clk 0:03:02]} 1... e6 {[%clk 0:02:59.8]} 2. d4 {[%clk 0:03:01.7]} 2...
d5 {[%clk 0:03:01]} 3. Nd2 {[%clk 0:03:03.3]} 3... c5 {[%clk 0:02:57.6]} 4. c3
{[%clk 0:03:03.6]} 4... Nf6 {[%clk 0:02:56.2]} 5. Bd3 {[%clk 0:03:01.6]} 5...
cxd4 {[%clk 0:02:54]} 6. cxd4 {[%clk 0:03:02.8]} 6... dxe4 {[%clk 0:02:55.2]} 7.
Nxe4 {[%clk 0:03:03.9]} 7... Bb4+ {[%clk 0:02:55.9]} 8. Bd2 {[%clk 0:02:52.1]}
8... Bxd2+ {[%clk 0:02:56.2]} 9. Qxd2 {[%clk 0:02:52]} 9... O-O {[%clk
0:02:56.7]} 10. Nf3 {[%clk 0:02:48.7]} 10... Nc6 {[%clk 0:02:56]} 11. O-O {[%clk
0:02:33.4]} 11... b6 {[%clk 0:02:31.6]} 12. Nxf6+ {[%clk 0:02:33.3]} 12... Qxf6
{[%clk 0:02:31.7]} 13. Be4 {[%clk 0:02:34.5]} 13... Bb7 {[%clk 0:02:30.4]} 14.
Ne5 {[%clk 0:02:15.6]} 14... Nxe5 {[%clk 0:01:58.6]} 15. Bxb7 {[%clk 0:02:07.3]}
15... Rad8 {[%clk 0:01:53.2]} 16. dxe5 {[%clk 0:02:05.3]} 16... Qe7 {[%clk
0:01:35.4]} 17. Qe2 {[%clk 0:01:10.9]} 17... Qxb7 {[%clk 0:01:33.1]} 18. Rfd1
{[%clk 0:01:11.3]} 18... Rd5 {[%clk 0:01:33]} 19. Rxd5 {[%clk 0:01:11.3]} 19...
Qxd5 {[%clk 0:01:34.9]} 20. b3 {[%clk 0:00:50.7]} 20... Rd8 {[%clk 0:01:34.6]}
21. Re1 {[%clk 0:00:50.1]} 21... Qd2 {[%clk 0:01:33.8]} 22. h3 {[%clk 0:00:50]}
22... Kf8 {[%clk 0:01:29.7]} 23. Kf1 {[%clk 0:00:50.4]} 23... Qf4 {[%clk
0:01:24.1]} 24. g3 {[%clk 0:00:42]} 24... Qf5 {[%clk 0:01:23.5]} 25. Kg2 {[%clk
0:00:40.2]} 25... g6 {[%clk 0:01:08.4]} 26. Rc1 {[%clk 0:00:29.7]} 26... Rd5
{[%clk 0:01:04.9]} 27. Re1 {[%clk 0:00:16.5]} 27... h5 {[%clk 0:01:04.1]} 28.
Qe4 {[%clk 0:00:16.3]} 28... Qxe4+ {[%clk 0:01:01.4]} 29. Rxe4 {[%clk
0:00:18.2]} 29... Rd2 {[%clk 0:01:02.6]} 30. Ra4 {[%clk 0:00:19.6]} 30... a5
{[%clk 0:00:58.9]} 31. Kf3 {[%clk 0:00:18.6]} 31... Ke7 {[%clk 0:00:50.7]} 32.
b4 {[%clk 0:00:19.7]} 32... Rd4 {[%clk 0:00:49]} 33. a3 {[%clk 0:00:20]} 33...
Kd7 {[%clk 0:00:29.1]} 34. Ke3 {[%clk 0:00:19.6]} 34... Rd5 {[%clk 0:00:30.4]}
35. f4 {[%clk 0:00:18.5]} 35... Kc6 {[%clk 0:00:23.4]} 36. bxa5 {[%clk
0:00:19.6]} 36... bxa5 {[%clk 0:00:19.7]} 37. g4 {[%clk 0:00:17.5]} 37... hxg4
{[%clk 0:00:19.8]} 38. hxg4 {[%clk 0:00:18.3]} 38... Kb5 {[%clk 0:00:21]} 39.
Re4 {[%clk 0:00:11.9]} 39... Rc5 {[%clk 0:00:21]} 40. Kd3 {[%clk 0:00:09.4]}
40... Rc1 {[%clk 0:00:21.6]} 41. f5 {[%clk 0:00:08.1]} 41... Ra1 {[%clk
0:00:18]} 42. a4+ {[%clk 0:00:05.8]} 42... Rxa4 {[%clk 0:00:19.8]} 43. Rxa4
{[%clk 0:00:06.7]} 43... Kxa4 {[%clk 0:00:21.7]} 44. fxe6 {[%clk 0:00:08]} 44...
fxe6 {[%clk 0:00:22.6]} 45. Kc4 {[%clk 0:00:09.6]} 45... Ka3 {[%clk 0:00:20.8]}
46. g5 {[%clk 0:00:09.4]} 46... Kb2 {[%clk 0:00:15]} 47. Kb5 {[%clk 0:00:10.3]}
47... Kc3 {[%clk 0:00:16.3]} 48. Kxa5 {[%clk 0:00:11.6]} 48... Kd4 {[%clk
0:00:17.5]} 49. Kb6 {[%clk 0:00:12.8]} 49... Kxe5 {[%clk 0:00:18.9]} 50. Kc6
{[%clk 0:00:14.4]} 50... Kf5 {[%clk 0:00:20.1]} 51. Kd6 {[%clk 0:00:16.3]} 51...
e5 {[%clk 0:00:21.1]} 52. Kd5 {[%clk 0:00:16.9]} 52... Kf4 {[%clk 0:00:21.7]}
53. Ke6 {[%clk 0:00:17.3]} 53... e4 {[%clk 0:00:22.7]} 54. Kf6 {[%clk
0:00:18.6]} 54... e3 {[%clk 0:00:24]} 55. Kxg6 {[%clk 0:00:20.5]} 55... e2
{[%clk 0:00:25.7]} 56. Kh6 {[%clk 0:00:22.1]} 56... e1=Q {[%clk 0:00:27.2]} 57.
g6 {[%clk 0:00:24]} 57... Qh4+ {[%clk 0:00:26.8]} 58. Kg7 {[%clk 0:00:25.2]}
58... Kf5 {[%clk 0:00:27.9]} 59. Kf7 {[%clk 0:00:26.1]} 59... Qf6+ {[%clk
0:00:28.6]} 60. Kg8 {[%clk 0:00:24.4]} 60... Qxg6+ {[%clk 0:00:29.7]} 61. Kh8
{[%clk 0:00:25.6]} 61... Qh6+ {[%clk 0:00:29]} 62. Kg8 {[%clk 0:00:26.5]} 62...
Qf6 {[%clk 0:00:20.5]} 63. Kh7 {[%clk 0:00:27]} 63... Kg5 {[%clk 0:00:18.7]} 64.
Kg8 {[%clk 0:00:27.8]} 64... Qe7 {[%clk 0:00:19.3]} 0-1

[Event "*** Titled Tuesday 3|2 Blitz (Early)"]
[Site "Chess.com"]
[Date "2016.12.06"]
[Round "3"]
[White "Noukii"]
[Black "Peroncio"]
[Result "1-0"]
[WhiteElo "2672"]
[BlackElo "2526"]
[TimeControl "180+2"]
[EndTime "11:36:56 PST"]
[Termination "Noukii won by resignation"]

1. d4 {[%clk 0:03:01.9]} 1... Nf6 {[%clk 0:03:00.8]} 2. c4 {[%clk 0:03:02.9]}
2... c5 {[%clk 0:03:02.4]} 3. d5 {[%clk 0:03:04.1]} 3... b5 {[%clk 0:03:04]} 4.
Nf3 {[%clk 0:03:05.2]} 4... g6 {[%clk 0:03:04.2]} 5. cxb5 {[%clk 0:03:06.1]}
5... a6 {[%clk 0:03:05.4]} 6. Nc3 {[%clk 0:03:07.7]} 6... axb5 {[%clk
0:02:58.8]} 7. d6 {[%clk 0:03:09.2]} 7... Qa5 {[%clk 0:02:36.5]} 8. Nd2 {[%clk
0:02:59.7]} 8... b4 {[%clk 0:02:28.5]} 9. Nce4 {[%clk 0:02:48]} 9... Nxe4 {[%clk
0:02:07.1]} 10. Nxe4 {[%clk 0:02:48.8]} 10... Bb7 {[%clk 0:02:08.3]} 11. dxe7
{[%clk 0:02:41.1]} 11... Bxe7 {[%clk 0:02:10.2]} 12. Nd6+ {[%clk 0:02:42]} 12...
Bxd6 {[%clk 0:02:11.3]} 13. Qxd6 {[%clk 0:02:43.9]} 13... Rg8 {[%clk 0:02:04.1]}
14. Qe5+ {[%clk 0:02:16.7]} 14... Kd8 {[%clk 0:02:02.8]} 15. b3 {[%clk
0:02:10.4]} 15... Nc6 {[%clk 0:02:00.3]} 16. Qf6+ {[%clk 0:02:11.5]} 16... Kc8
{[%clk 0:02:00.3]} 17. e3 {[%clk 0:02:13.1]} 17... Ba6 {[%clk 0:01:55.4]} 18.
Qxf7 {[%clk 0:02:13.9]} 18... Rd8 {[%clk 0:01:52.5]} 19. Bb2 {[%clk 0:02:14.8]}
19... Bxf1 {[%clk 0:01:51.1]} 20. Rxf1 {[%clk 0:02:16.7]} 20... Qb5 {[%clk
0:01:44.6]} 21. Qxh7 {[%clk 0:02:04.4]} 21... Qd3 {[%clk 0:01:44.1]} 22. Qg7
{[%clk 0:01:31.1]} 22... c4 {[%clk 0:01:38.8]} 23. Rd1 {[%clk 0:01:27.3]} 23...
Qc2 {[%clk 0:01:39]} 24. Rd2 {[%clk 0:01:25.3]} 24... Qe4 {[%clk 0:01:35.2]} 25.
f3 {[%clk 0:01:15.5]} 25... Qxe3+ {[%clk 0:01:33.9]} 26. Re2 {[%clk 0:01:17.1]}
26... Qc5 {[%clk 0:01:33.6]} 27. bxc4 {[%clk 0:01:07]} 27... Rxa2 {[%clk
0:01:32.6]} 28. Rff2 {[%clk 0:01:07.2]} 28... Qxc4 {[%clk 0:01:26.4]} 29. g4
{[%clk 0:01:05.2]} 29... b3 {[%clk 0:00:36]} 30. Kf1 {[%clk 0:01:05.8]} 30...
Nb4 {[%clk 0:00:37.7]} 31. Kg2 {[%clk 0:01:02.2]} 31... Nd3 {[%clk 0:00:39.1]}
32. Re4 {[%clk 0:01:02.3]} 32... Qc6 {[%clk 0:00:36.3]} 33. Rd2 {[%clk
0:00:43.6]} 33... d5 {[%clk 0:00:37.8]} 34. Ree2 {[%clk 0:00:39.5]} 34... Nf4+
{[%clk 0:00:36.5]} 35. Kf2 {[%clk 0:00:40.7]} 35... Nxe2 {[%clk 0:00:38.2]} 36.
Rxe2 {[%clk 0:00:42]} 36... d4 {[%clk 0:00:36.6]} 37. Kg2 {[%clk 0:00:37.1]}
37... d3 {[%clk 0:00:36.5]} 38. Rd2 {[%clk 0:00:38.4]} 38... Rd7 {[%clk
0:00:36.4]} 39. Qh8+ {[%clk 0:00:39.1]} 39... Kb7 {[%clk 0:00:37.2]} 40. Qe5
{[%clk 0:00:40.6]} 40... Rd5 {[%clk 0:00:29.8]} 41. Qe7+ {[%clk 0:00:41.1]}
41... Kb6 {[%clk 0:00:28.8]} 42. Qe3+ {[%clk 0:00:40.4]} 42... Qc5 {[%clk
0:00:27.5]} 43. Qe6+ {[%clk 0:00:41.6]} 43... Kb5 {[%clk 0:00:27.1]} 44. Qxg6
{[%clk 0:00:40.5]} 44... Rxb2 {[%clk 0:00:26.5]} 45. Rxb2 {[%clk 0:00:41.3]}
45... Qc2+ {[%clk 0:00:28.1]} 46. Rxc2 {[%clk 0:00:38.9]} 46... bxc2 {[%clk
0:00:30]} 47. Qe4 {[%clk 0:00:37.4]} 47... Kc5 {[%clk 0:00:26.8]} 48. Qe3+
{[%clk 0:00:38.7]} 48... Kc4 {[%clk 0:00:28.5]} 49. Qd2 {[%clk 0:00:40.1]} 49...
Rb5 {[%clk 0:00:29.7]} 50. Qf4+ {[%clk 0:00:36.4]} 50... Kc3 {[%clk 0:00:30.4]}
51. Kf2 {[%clk 0:00:29.4]} 51... Rb1 {[%clk 0:00:30.6]} 52. Qe5+ {[%clk
0:00:30.9]} 52... Kc4 {[%clk 0:00:28.4]} 53. Qe4+ {[%clk 0:00:32.3]} 53... Kc3
{[%clk 0:00:30.1]} 54. Qc6+ {[%clk 0:00:33.2]} 54... Kd2 {[%clk 0:00:31]} 55.
Qh6+ {[%clk 0:00:33.8]} 55... Kd1 {[%clk 0:00:31.3]} 56. Qe3 {[%clk 0:00:35]}
56... c1=Q {[%clk 0:00:31.7]} 57. Qxd3+ {[%clk 0:00:35.9]} 57... Qd2+ {[%clk
0:00:33]} 58. Qxd2+ {[%clk 0:00:37.6]} 58... Kxd2 {[%clk 0:00:34.9]} 59. g5
{[%clk 0:00:33.7]} 59... Kd3 {[%clk 0:00:35.8]} 60. Kg3 {[%clk 0:00:34.8]} 60...
Kd4 {[%clk 0:00:36.5]} 61. Kf4 {[%clk 0:00:36.3]} 61... Kd5 {[%clk 0:00:36.8]}
62. Kf5 {[%clk 0:00:37.7]} 62... Kd6 {[%clk 0:00:38.3]} 63. f4 {[%clk
0:00:35.6]} 63... Ke7 {[%clk 0:00:39.5]} 64. Kg6 {[%clk 0:00:37.2]} 64... Rb6+
{[%clk 0:00:40]} 65. Kg7 {[%clk 0:00:38.7]} 65... Ke6 {[%clk 0:00:36.2]} 66. h4
{[%clk 0:00:34.9]} 66... Kf5 {[%clk 0:00:36.8]} 67. h5 {[%clk 0:00:36.4]} 67...
Rb7+ {[%clk 0:00:38.3]} 68. Kh6 {[%clk 0:00:36.3]} 68... Rc7 {[%clk 0:00:24.4]}
69. g6 {[%clk 0:00:35.5]} 69... Kf6 {[%clk 0:00:23.4]} 70. f5 {[%clk 0:00:36.9]}
70... Rc1 {[%clk 0:00:19.5]} 71. Kh7 {[%clk 0:00:36.9]} 71... Rg1 {[%clk
0:00:21.2]} 72. h6 {[%clk 0:00:37]} 72... Rg2 {[%clk 0:00:21.6]} 73. g7 {[%clk
0:00:36.6]} 73... Kf7 {[%clk 0:00:21.6]} 74. Kh8 {[%clk 0:00:36.9]} 74... Rg1
{[%clk 0:00:21.5]} 75. f6 {[%clk 0:00:36.4]} 75... Rg6 {[%clk 0:00:19.6]} 76. h7
{[%clk 0:00:36.9]} 76... Kxf6 {[%clk 0:00:20.3]} 77. g8=Q {[%clk 0:00:36.9]} 1-0